fUSD/lending_fUSD_20241116
["ID","MTS","AMOUNT","RATE_DAILY","PERIOD"]
[342337944,1731748831996,500.0,0.00025,60]
[342337945,1731748832265,500.0,0.00025,60]
[342337946,1731748832562,500.0,0.00025,60]
[342337947,1731748832856,472.6508634,0.00025,60]
[342337948,1731748835059,441.75,0.00025,60]
[342337949,1731748836923,1398.83,0.00025,60]
[342337950,1731748837285,1398.83,0.00025,60]
[342337951,1731748837326,2599.09,0.00025,60]
[342337952,1731748837548,1398.83,0.00025,60]
[342337953,1731748837726,2599.09,0.00025,60]
[342337954,1731748837836,1398.83,0.00025,60]
[342337955,1731748838004,2599.09,0.00025,60]
[342337956,1731748838400,1398.83,0.00025,60]
[342337957,1731748838438,2599.09,0.00025,60]
[342337958,1731748838500,1398.83,0.00025,60]
[342337959,1731748838557,2599.09,0.00025,60]
[342337960,1731748838732,1398.83,0.00025,60]
[342337961,1731748838879,2599.09,0.00025,60]
[342337962,1731748838995,1398.83,0.00025,60]
[342337963,1731748839282,1398.83,0.00025,60]
[342337964,1731748839378,2599.09,0.00025,60]
[342337965,1731748839587,1398.83,0.00025,60]
[342337966,1731748839674,2599.09,0.00025,60]
[342337967,1731748839878,1398.83,0.00025,60]
[342337968,1731748839945,2599.09,0.00025,60]
[342337969,1731748840139,1398.83,0.00025,60]
[342337970,1731748840214,2599.09,0.00025,60]
[342337971,1731748840399,1398.83,0.00025,60]
[342337972,1731748840476,2599.09,0.00025,60]
[342337973,1731748840658,1398.83,0.00025,60]
[342337974,1731748840744,2599.09,0.00025,60]
[342337975,1731748840960,1398.83,0.00025,60]
[342337976,1731748841028,2599.09,0.00025,60]
[342337977,1731748841258,1398.83,0.00025,60]
[342337978,1731748841313,2599.09,0.00025,60]
[342337979,1731748841533,1398.83,0.00025,60]
[342337980,1731748841603,2599.09,0.00025,60]
[342337981,1731748841791,1398.83,0.00025,60]
[342337982,1731748841927,2599.09,0.00025,60]
[342337983,1731748842043,747.18,0.00025,60]
[342337984,1731748842072,1398.83,0.00025,60]
[342337985,1731748842216,2599.09,0.00025,60]
[342337986,1731748842247,500.0,0.00025,60]
[342337987,1731748842329,747.18,0.00025,60]
[342337988,1731748842360,1398.83,0.00025,60]
[342337989,1731748842503,2599.09,0.00025,60]
[342337990,1731748842765,747.18,0.00025,60]
[342337991,1731748842798,1398.83,0.00025,60]
[342337992,1731748842855,2599.09,0.00025,60]
[342337993,1731748842887,747.18,0.00025,60]
[342337994,1731748842918,1398.83,0.00025,60]
[342337995,1731748843044,2599.09,0.00025,60]
[342337996,1731748843085,747.18,0.00025,60]
[342337997,1731748843219,1398.83,0.00025,60]
[342337998,1731748843303,2599.09,0.00025,60]
[342337999,1731748843345,747.18,0.00025,60]
[342338000,1731748843480,1398.87006688,0.00025,60]
[342338001,1731748843590,2599.09,0.00025,60]
[342338002,1731748843618,747.18,0.00025,60]
[342338003,1731748843900,2599.09,0.00025,60]
[342338004,1731748844163,2599.12549987,0.00025,60]
[342338005,1731748844197,747.18,0.00025,60]
[342338006,1731748844460,747.18,0.00025,60]
[342338007,1731748844704,747.18,0.00025,60]
[342338008,1731748844977,747.18,0.00025,60]
[342338009,1731748845345,747.18,0.00025,60]
[342338010,1731748845596,747.18,0.00025,60]
[342338011,1731748845740,500.0,0.00025,60]
[342338012,1731748845869,747.18,0.00025,60]
[342338013,1731748846170,747.18,0.00025,60]
[342338014,1731748846427,747.18,0.00025,60]
[342338015,1731748846594,500.0,0.00025,60]
[342338016,1731748846677,747.18,0.00025,60]
[342338017,1731748846837,500.0,0.00025,60]
[342338018,1731748846946,747.18,0.00025,60]
[342338019,1731748847093,500.0,0.00025,60]
[342338020,1731748847188,747.18,0.00025,60]
[342338021,1731748847376,500.0,0.00025,60]
[342338022,1731748847441,747.18,0.00025,60]
[342338023,1731748847638,500.0,0.00025,60]
[342338024,1731748847686,747.18,0.00025,60]
[342338025,1731748847855,500.0,0.00025,60]
[342338026,1731748847998,747.18,0.00025,60]
[342338027,1731748848028,500.0,0.00025,60]
[342338028,1731748848238,433.58833004,0.00025,60]
[342338029,1731748848277,747.18,0.00025,60]
[342338030,1731748848362,500.0,0.00025,60]
[342338031,1731748848689,747.21272846,0.00025,60]
[342338032,1731748848718,500.0,0.00025,60]
[342338033,1731748848896,500.0,0.00025,60]
[342338034,1731748849174,500.0,0.00025,60]
[342338035,1731748849748,500.0,0.00025,60]
[342338036,1731748850007,330.14570728,0.00025,60]
[342338037,1731748854306,500.0,0.00025,60]
[342338038,1731748854557,500.0,0.00025,60]
[342338039,1731748854837,549.86758171,0.00025,60]
[342338040,1731748859228,419.99951469,0.00025,60]
[342338041,1731748901602,700.0,0.00025,60]
[342338042,1731748902282,700.0,0.00025,60]
[342338043,1731748902532,700.0,0.00025,60]
[342338044,1731748902794,700.0,0.00025,60]
[342338045,1731748903048,700.0,0.00025,60]
[342338046,1731748903314,700.0,0.00025,60]
[342338047,1731748903581,700.0,0.00025,60]
[342338048,1731748903853,700.0,0.00025,60]
[342338049,1731748904118,700.0,0.00025,60]
[342338050,1731748904414,700.0,0.00025,60]
[342338051,1731748904760,700.0,0.00025,60]
[342338052,1731748905028,700.0,0.00025,60]
[342338053,1731748905293,700.0,0.00025,60]
[342338054,1731748905587,700.0,0.00025,60]
[342338055,1731748905848,700.0,0.00025,60]
[342338056,1731748906115,700.0,0.00025,60]
[342338057,1731748906375,700.0,0.00025,60]
[342338058,1731748906644,700.0,0.00025,60]
[342338059,1731748906902,700.0,0.00025,60]
[342338060,1731748907167,700.0,0.00025,60]
[342338061,1731748907420,700.0,0.00025,60]
[342338062,1731748907676,700.0,0.00025,60]
[342338063,1731748907979,595.31956214,0.00025,60]
[342338064,1731748914926,500.0,0.00025,60]
[342338065,1731748915199,301.31,0.00025,60]
[342338066,1731748935156,500.0,0.00025,60]
[342338067,1731748935422,386.92800698,0.00025,60]
[342338068,1731748959812,271.780476,0.00025,60]
[342338069,1731748960302,3974.23,0.00025,60]
[342338070,1731748960575,3974.23,0.00025,60]
[342338071,1731748961253,3974.23,0.00025,60]
[342338072,1731748961538,3974.23,0.00025,60]
[342338073,1731748961803,3974.23,0.00025,60]
[342338074,1731748962066,3974.23,0.00025,60]
[342338075,1731748962374,3974.23,0.00025,60]
[342338076,1731748962643,3974.23,0.00025,60]
[342338077,1731748962913,3974.23,0.00025,60]
[342338078,1731748963455,3974.23,0.00025,60]
[342338079,1731748963500,3974.23,0.00025,60]
[342338080,1731748963805,3974.23,0.00025,60]
[342338081,1731748964061,3974.23,0.00025,60]
[342338082,1731748964321,3974.23,0.00025,60]
[342338083,1731748964570,3974.23,0.00025,60]
[342338084,1731748964825,3974.23,0.00025,60]
[342338085,1731748965173,3974.23,0.00025,60]
[342338086,1731748965457,3974.23,0.00025,60]
[342338087,1731748965727,3974.23,0.00025,60]
[342338088,1731748965964,3974.23,0.00025,60]
[342338089,1731748966239,3974.23,0.00025,60]
[342338090,1731748966521,3974.23,0.00025,60]
[342338091,1731748966790,3974.23,0.00025,60]
[342338092,1731748967034,3974.28682955,0.00025,60]
[342338093,1731748974662,500.0,0.00025,60]
[342338094,1731748974967,500.0,0.00025,60]
[342338095,1731748975233,500.0,0.00025,60]
[342338096,1731748975493,500.0,0.00025,60]
[342338097,1731748975737,500.0,0.00025,60]
[342338098,1731748975993,500.0,0.00025,60]
[342338099,1731748976253,500.0,0.00025,60]
[342338100,1731748976509,500.0,0.00025,60]
[342338101,1731748976771,500.0,0.00025,60]
[342338102,1731748977099,500.0,0.00025,60]
[342338103,1731748977358,500.0,0.00025,60]
[342338104,1731748977627,500.0,0.00025,60]
[342338105,1731748977887,500.0,0.00025,60]
[342338106,1731748978138,499.49387028,0.00025,60]
[342338107,1731748990784,500.0,0.00025,60]
[342338108,1731748991271,447.44048531,0.00025,60]
[342338109,1731748995427,500.0,0.00025,60]
[342338110,1731748995682,500.0,0.00025,60]
[342338111,1731748995974,500.0,0.00025,60]
[342338112,1731748996236,500.0,0.00025,60]
[342338113,1731748996521,500.0,0.00025,60]
[342338114,1731748996836,500.20097652,0.00025,60]
[342338115,1731749051337,514.7948115,0.00025,60]
[342338116,1731749084440,536.76693421,0.00025,60]
[342338117,1731749103125,500.0,0.00025,60]
[342338118,1731749103394,500.0,0.00025,60]
[342338119,1731749103765,500.0,0.00025,60]
[342338120,1731749104038,347.04879262,0.00025,60]
[342338121,1731749150601,1000.0,0.00025,60]
[342338122,1731749150920,1000.0,0.00025,60]
[342338124,1731749153087,402.99890742,0.00025,60]
[342338125,1731749156446,500.0,0.00025,60]
[342338126,1731749156726,500.0,0.00025,60]
[342338127,1731749156969,227.80124204,0.00025,60]
[342338128,1731749158879,2423.03,0.00025,60]
[342338129,1731749159137,2423.03,0.00025,60]
[342338130,1731749159401,2423.03,0.00025,60]
[342338131,1731749159498,500.0,0.00025,60]
[342338132,1731749159684,2423.03,0.00025,60]
[342338133,1731749159746,500.0,0.00025,60]
[342338134,1731749159983,2423.03,0.00025,60]
[342338135,1731749160326,2423.03,0.00025,60]
[342338136,1731749160589,2423.03,0.00025,60]
[342338137,1731749160899,2423.03,0.00025,60]
[342338138,1731749161154,2423.03,0.00025,60]
[342338139,1731749161454,2423.03,0.00025,60]
[342338140,1731749162041,2423.03,0.00025,60]
[342338141,1731749162093,2423.03,0.00025,60]
[342338142,1731749162508,2423.03,0.00025,60]
[342338143,1731749162766,2423.03,0.00025,60]
[342338144,1731749163111,2423.03,0.00025,60]
[342338145,1731749163389,2423.03,0.00025,60]
[342338146,1731749163680,2423.03,0.00025,60]
[342338147,1731749163934,2423.03,0.00025,60]
[342338148,1731749164203,2423.03,0.00025,60]
[342338149,1731749164455,2423.03,0.00025,60]
[342338150,1731749164707,2423.03,0.00025,60]
[342338151,1731749164995,2423.03,0.00025,60]
[342338152,1731749165270,2423.03,0.00025,60]
[342338153,1731749165533,2423.04348512,0.00025,60]
[342338154,1731749182359,625.5757018,0.00025,60]
[342338155,1731749192065,500.0,0.00025,60]
[342338156,1731749192673,500.0,0.00025,60]
[342338157,1731749192713,500.0,0.00025,60]
[342338158,1731749198168,509.41831603,0.00025,60]
[342338159,1731749205133,536.98717857,0.00025,60]
[342338160,1731749243165,-518.07,8.533e-05,2]
[342338161,1731749243186,-682.71457531,8.569e-05,2]
[342338162,1731749260299,178.0,0.00025,60]
[342338165,1731749305029,500.0,0.00025,60]
[342338166,1731749305273,500.0,0.00025,60]
[342338167,1731749305529,500.0,0.00025,60]
[342338168,1731749305795,500.0,0.00025,60]
[342338169,1731749306089,500.0,0.00025,60]
[342338170,1731749306346,500.0,0.00025,60]
[342338171,1731749306619,500.0,0.00025,60]
[342338172,1731749306930,500.0,0.00025,60]
[342338173,1731749307262,500.0,0.00025,60]
[342338174,1731749307565,500.0,0.00025,60]
[342338175,1731749308371,500.0,0.00025,60]
[342338176,1731749308410,500.0,0.00025,60]
[342338177,1731749308449,500.0,0.00025,60]
[342338178,1731749308681,223.39499265,0.00025,60]
[342338189,1731749327565,500.0,0.00025,60]
[342338190,1731749327806,396.34121654,0.00025,60]
[342338191,1731749332286,500.56039619,0.00025,60]
[342338192,1731749334338,500.0,0.00025,60]
[342338193,1731749334602,499.65999199,0.00025,60]
[342338194,1731749341305,497.74000273,0.00025,60]
[342338200,1731749345097,-1000.0,8.516e-05,2]
[342338201,1731749345124,-6043.54542469,8.569e-05,2]
[342338202,1731749345145,-170.5,8.613e-05,2]
[342338203,1731749345166,-250.0,8.749e-05,2]
[342338204,1731749345188,-403.13,8.816e-05,2]
[342338205,1731749345209,-1398.79,8.868e-05,2]
[342338206,1731749345229,-164.87,8.912e-05,2]
[342338207,1731749345249,-250.0,8.955e-05,2]
[342338208,1731749345271,-162.31,8.973e-05,2]
[342338209,1731749345293,-162.31,8.98e-05,2]
[342338210,1731749345319,-162.31,8.986e-05,2]
[342338211,1731749345342,-162.31,8.992e-05,2]
[342338212,1731749345365,-162.31,8.999e-05,2]
[342338213,1731749345387,-1323.38332205,9e-05,2]
[342338214,1731749345572,501.27687495,0.00025,60]
[342338215,1731749349718,500.0,0.00025,60]
[342338216,1731749349759,500.0,0.00025,60]
[342338217,1731749350025,500.0,0.00025,60]
[342338218,1731749350289,462.48321455,0.00025,60]
[342338219,1731749356112,615.48986603,0.00025,60]
[342338220,1731749358057,501.5381772,0.00025,60]
[342338221,1731749361749,500.0,0.00025,60]
[342338222,1731749362290,528.00845534,0.00025,60]
[342338223,1731749364415,500.0,0.00025,60]
[342338224,1731749364666,500.0,0.00025,60]
[342338225,1731749364930,594.68903446,0.00025,60]
[342338226,1731749367010,1722.67,0.00025,60]
[342338227,1731749367334,1722.67,0.00025,60]
[342338228,1731749367598,1722.67,0.00025,60]
[342338233,1731749368203,1722.67,0.00025,60]
[342338236,1731749368502,1722.67,0.00025,60]
[342338237,1731749368804,1722.67,0.00025,60]
[342338238,1731749369115,1722.67,0.00025,60]
[342338239,1731749369488,1722.67,0.00025,60]
[342338240,1731749369752,1722.67,0.00025,60]
[342338241,1731749370061,1722.67,0.00025,60]
[342338242,1731749370395,1722.67,0.00025,60]
[342338243,1731749370587,1722.67,0.00025,60]
[342338244,1731749370850,1722.67,0.00025,60]
[342338245,1731749371123,1722.67,0.00025,60]
[342338246,1731749371437,1722.67,0.00025,60]
[342338247,1731749371695,1722.67,0.00025,60]
[342338248,1731749371955,1722.67,0.00025,60]
[342338249,1731749372226,1722.67,0.00025,60]
[342338250,1731749372487,1722.67,0.00025,60]
[342338251,1731749372744,1722.67,0.00025,60]
[342338252,1731749373005,1722.67,0.00025,60]
[342338253,1731749373263,1722.67,0.00025,60]
[342338254,1731749373528,1722.67,0.00025,60]
[342338255,1731749373787,1722.84815878,0.00025,60]
[342338256,1731749377464,1000.0,0.00025,60]
[342338257,1731749377724,382.30420358,0.00025,60]
[342338258,1731749385254,161.70966893,0.00025,60]
[342338262,1731749417635,500.0,0.00025,60]
[342338263,1731749417893,500.0,0.00025,60]
[342338264,1731749418182,500.0,0.00025,60]
[342338265,1731749418454,500.0,0.00025,60]
[342338266,1731749418724,500.0,0.00025,60]
[342338267,1731749419170,514.8936296,0.00025,60]
[342338268,1731749428179,500.0,0.00025,60]
[342338269,1731749428451,500.0,0.00025,60]
[342338270,1731749428779,216.16437878,0.00025,60]
[342338276,1731749431959,-250.0,8.953e-05,2]
[342338277,1731749431969,-328.22022484,9e-05,2]
[342338278,1731749431978,-162.31,9.005e-05,2]
[342338279,1731749431988,-162.31,9.012e-05,2]
[342338280,1731749431997,-162.31,9.018e-05,2]
[342338281,1731749432006,-803.27,9.178e-05,2]
[342338282,1731749432016,-150.0,9.178e-05,2]
[342338283,1731749432025,-1000.0,9.58e-05,2]
[342338284,1731749432035,-200.0,9.6e-05,2]
[342338285,1731749432045,-1886.21,9.67e-05,2]
[342338286,1731749432055,-300.0,9.797e-05,2]
[342338287,1731749432064,-150.0,9.797e-05,2]
[342338288,1731749432073,-1230.94709242,9.798e-05,2]
[342338289,1731749432086,-10519.06,9.798e-05,2]
[342338290,1731749432098,-1484.66200758,9.798e-05,2]
[342338291,1731749432107,-19450.5194,9.798e-05,2]
[342338292,1731749432116,-263.6189,9.798e-05,2]
[342338293,1731749432125,-3181.8995,9.798e-05,2]
[342338294,1731749432146,-570.6012,9.798e-05,2]
[342338295,1731749432155,-1000.0,9.798e-05,2]
[342338296,1731749432164,-1016.0335,9.798e-05,2]
[342338297,1731749432174,-580.62614466,9.897e-05,2]
[342338298,1731749432184,-245.88049841,9.897e-05,2]
[342338299,1731749432193,-16450.1256,9.898e-05,2]
[342338300,1731749432203,-175133.41932578,9.898e-05,2]
[342338301,1731749432214,-46900.00000028,9.898e-05,2]
[342338302,1731749434415,544.95573871,0.00025,60]
[342338303,1731749435022,-657.4833942,9.898e-05,2]
[342338304,1731749435035,-10814.21157189,9.898e-05,2]
[342338305,1731749435087,-12027.45132302,9.898e-05,2]
[342338306,1731749435100,-1794.848539,9.898e-05,2]
[342338307,1731749435113,-182257.43654583,9.898e-05,2]
[342338308,1731749435124,-1205.84232292,9.898e-05,2]
[342338318,1731749438035,-477.49,8.976e-05,2]
[342338319,1731749438046,-1179.76967708,9.898e-05,2]
[342338320,1731749438056,-1059.877,9.9e-05,2]
[342338321,1731749438067,-2850.40311263,9.9e-05,2]
[342338322,1731749438079,-1799.36283637,9.9e-05,2]
[342338323,1731749438092,-20317.7676,9.9e-05,2]
[342338324,1731749438104,-1575.47196649,9.9e-05,2]
[342338325,1731749438122,-28531.02947967,9.9e-05,2]
[342338326,1731749438139,-3692.2557,9.9e-05,2]
[342338327,1731749438151,-20371.27700484,9.9e-05,2]
[342338328,1731749438162,-33574.34730442,9.9e-05,2]
[342338329,1731749438174,-26999.48982,9.9e-05,2]
[342338330,1731749438188,-2469.80505344,9.9e-05,2]
[342338331,1731749438207,-253.7732008,9.9e-05,2]
[342338332,1731749438220,-420.19740849,9.9e-05,2]
[342338333,1731749438297,-5380.85928,9.9e-05,2]
[342338420,1731749439945,-888.43578756,9.798e-05,2]
[342338421,1731749439963,-15038.66931244,9.798e-05,2]
[342338422,1731749439974,-6049.63838823,9.9e-05,2]
[342338423,1731749439985,-403.13,9.918e-05,2]
[342338424,1731749439996,-7951.70005429,9.952e-05,2]
[342338425,1731749440007,-12813.46800485,9.954e-05,2]
[342338426,1731749440017,-9801.84180482,9.956e-05,2]
[342338427,1731749440028,-7951.70005429,9.957e-05,2]
[342338428,1731749440039,-22059.60264948,9.958e-05,2]
[342338429,1731749440067,-275.7755006,9.958e-05,2]
[342338430,1731749440081,-950.22519785,9.958e-05,2]
[342338431,1731749440095,-1346.25405881,9.958e-05,2]
[342338432,1731749440107,-383.78651,9.958e-05,2]
[342338433,1731749440119,-16569.0476503,9.958e-05,2]
[342338434,1731749440133,-17733.47642841,9.958e-05,2]
[342338435,1731749440144,-17463.03398803,9.959e-05,2]
[342338436,1731749440156,-450.85999996,9.959e-05,2]
[342338437,1731749440169,-400.07483383,9.959e-05,2]
[342338438,1731749440181,-428.79321821,9.959e-05,2]
[342338439,1731749440194,-4715.68916619,9.959e-05,2]
[342338440,1731749440206,-6301.9999045,9.959e-05,2]
[342338441,1731749440228,-1454.33726,9.959e-05,2]
[342338442,1731749440240,-1229.97084997,9.959e-05,2]
[342338449,1731749443093,500.75208042,0.00025,60]
[342338450,1731749443115,-26873.40877476,9.959e-05,2]
[342338451,1731749443125,-7951.70005429,9.96e-05,2]
[342338452,1731749443137,-12813.46800485,9.964e-05,2]
[342338453,1731749443148,-9801.84180482,9.965e-05,2]
[342338454,1731749443158,-59318.16799545,9.965e-05,2]
[342338455,1731749443167,-3295.94217974,9.965e-05,2]
[342338456,1731749443177,-3295.94217974,9.967e-05,2]
[342338457,1731749443187,-59318.16799545,9.968e-05,2]
[342338458,1731749443197,-46482.3610109,9.969e-05,2]
[342338459,1731749443209,-3388.51735522,9.969e-05,2]
[342338460,1731749443225,-2762.33023679,9.969e-05,2]
[342338461,1731749443236,-443.67827458,9.969e-05,2]
[342338462,1731749443278,-2831.99205,9.969e-05,2]
[342338463,1731749443289,-3409.28906796,9.969e-05,2]
[342338464,1731749443299,-3350.81328743,9.969e-05,2]
[342338465,1731749443311,-5910.08448345,9.969e-05,2]
[342338466,1731749443323,-3552.57023397,9.969e-05,2]
[342338467,1731749443332,-987.64850254,9.969e-05,2]
[342338468,1731749443362,-4205.61834217,9.969e-05,2]
[342338469,1731749443418,-4608.57496011,9.969e-05,2]
[342338470,1731749443428,-500.53756891,9.973e-05,2]
[342338471,1731749443441,-500.0,9.973e-05,2]
[342338472,1731749443451,-500.0,9.973e-05,2]
[342338473,1731749443461,-12813.46800485,9.973e-05,2]
[342338474,1731749443471,-3295.94217974,9.975e-05,2]
[342338475,1731749443481,-482.73981888,9.976e-05,2]
[342338476,1731749443491,-3295.94217974,9.978e-05,2]
[342338477,1731749443500,-482.73981888,9.98e-05,2]
[342338478,1731749443511,-482.73981888,9.984e-05,2]
[342338479,1731749443521,-970.0,9.986e-05,2]
[342338480,1731749443531,-12813.46800485,9.986e-05,2]
[342338482,1731749443541,-482.73981888,9.988e-05,2]
[342338484,1731749443551,-9801.84180482,9.988e-05,2]
[342338485,1731749443560,-9801.84180482,9.99e-05,2]
[342338487,1731749443570,-7951.70005429,9.991e-05,2]
[342338489,1731749443580,-482.73981888,9.993e-05,2]
[342338490,1731749443590,-7951.70005429,9.999e-05,2]
[342338491,1731749443600,-300.02,9.999e-05,2]
[342338492,1731749443611,-7286.48539919,9.999e-05,2]
[342338494,1731749443621,-53992.89353223,9.999e-05,2]
[342338496,1731749443631,-1268.142,0.0001,2]
[342338497,1731749443641,-3295.94217974,0.0001,2]
[342338498,1731749443650,-3620.15560133,0.0001,2]
[342338500,1731749443659,-45919.89988057,0.0001,2]
[342338502,1731749443672,-73085.6,0.0001,2]
[342338515,1731749445949,-300.75301768,0.0001,2]
[342338516,1731749446010,-2618.418804,0.0001,2]
[342338517,1731749446022,-1142.8317904,0.0001,2]
[342338518,1731749446034,-4488.27251069,0.0001,2]
[342338519,1731749446045,-2383.0,0.0001,2]
[342338520,1731749446234,-10378.66546819,0.0001,2]
[342338521,1731749446246,-3913.20946171,0.0001,2]
[342338522,1731749446271,-1527.6374034,0.0001,2]
[342338525,1731749531921,1088.28,8.219e-05,2]
[342338526,1731749545784,2077.19992363,0.00025,60]
[342338527,1731749575691,500.0,0.00025,60]
[342338528,1731749576190,500.0,0.00025,60]
[342338529,1731749576458,500.0,0.00025,60]
[342338530,1731749576743,500.0,0.00025,60]
[342338531,1731749936552,500.0,0.00025,60]
[342338532,1731749936819,500.0,0.00025,60]
[342338533,1731749937067,500.0,0.00025,60]
[342338534,1731749937382,500.0,0.00025,60]
[342338535,1731749937653,500.0,0.00025,60]
[342338536,1731750078919,2000.0,0.00024932,60]
[342338537,1731750079211,2000.0,0.00024932,60]
[342338538,1731750079510,2000.0,0.00024932,60]
[342338539,1731750079802,2000.0,0.00024932,60]
[342338540,1731750080092,2000.0,0.00024932,60]
[342338542,1731750256884,-247.60629447,0.00011,5]
[342338543,1731750256906,-19752.39370553,0.00011463,7]
[342338544,1731750315446,1033.86,8.219e-05,2]
[342338545,1731750391239,500.0,0.00025,60]
[342338546,1731750391529,208.0,0.00025,60]
[342338547,1731750448559,600.0,0.00025,60]
[342338548,1731750453107,-217.04512935,8.679e-05,2]
[342338549,1731750545125,-32.95487065,8.679e-05,2]
[342338550,1731750545148,-176.13,8.683e-05,2]
[342338551,1731750545169,-166.75,8.685e-05,2]
[342338552,1731750545192,-1000.0,8.695e-05,2]
[342338553,1731750545213,-143.16512935,8.703e-05,2]
[342338557,1731750632214,-106.83487065,8.703e-05,2]
[342338558,1731750632223,-1465.03,8.785e-05,2]
[342338559,1731750632232,-259.03,9.491e-05,2]
[342338560,1731750632242,-448.57,9.511e-05,2]
[342338561,1731750632252,-274.39798544,9.514e-05,2]
[342338562,1731750632266,-174.17201456,9.514e-05,2]
[342338563,1731750632275,-448.57,9.516e-05,2]
[342338564,1731750632286,-448.57,9.519e-05,2]
[342338565,1731750632296,-150.0,9.52e-05,2]
[342338566,1731750632305,-448.57,9.521e-05,2]
[342338567,1731750632318,-388.61532326,9.524e-05,2]
[342338568,1731750632330,-59.95467674,9.524e-05,2]
[342338569,1731750632339,-448.57,9.526e-05,2]
[342338570,1731750632357,-448.57,9.529e-05,2]
[342338571,1731750632369,-448.57,9.531e-05,2]
[342338572,1731750632379,-448.57,9.534e-05,2]
[342338573,1731750632389,-448.57,9.536e-05,2]
[342338574,1731750632399,-448.57,9.539e-05,2]
[342338575,1731750632409,-360.94502205,9.541e-05,2]
[342338576,1731750632422,-87.62497795,9.541e-05,2]
[342338577,1731750632431,-448.57,9.544e-05,2]
[342338578,1731750632442,-448.57,9.546e-05,2]
[342338579,1731750632452,-448.57,9.549e-05,2]
[342338580,1731750632461,-150.0,9.551e-05,2]
[342338581,1731750632472,-448.57,9.551e-05,2]
[342338582,1731750632482,-448.57,9.554e-05,2]
[342338583,1731750632493,-193.66628514,9.556e-05,2]
[342338584,1731750632505,-254.90371486,9.556e-05,2]
[342338585,1731750632515,-300.0,9.558e-05,2]
[342338586,1731750632525,-448.57,9.559e-05,2]
[342338587,1731750632535,-150.0,9.578e-05,2]
[342338588,1731750632545,-724.64,9.578e-05,2]
[342338589,1731750632555,-1731.96,9.603e-05,2]
[342338590,1731750632565,-999.99,9.67e-05,2]
[342338591,1731750632577,-601.47,9.67e-05,2]
[342338592,1731750632587,-446.19,9.67e-05,2]
[342338593,1731750632597,-150.99,9.67e-05,2]
[342338594,1731750632607,-7445.77728894,9.67e-05,2]
[342338595,1731750632620,-684.71908266,9.67e-05,2]
[342338596,1731750632631,-567.14,9.67e-05,2]
[342338597,1731750632643,-646.1236284,9.67e-05,2]
[342338598,1731750632653,-176.13,9.768e-05,2]
[342338599,1731750632662,-1000.0,9.782e-05,2]
[342338600,1731750632672,-17911.8785,9.798e-05,2]
[342338601,1731750632681,-2937.3879,9.89e-05,2]
[342338602,1731750632691,-1575.472,9.9e-05,2]